lending/lending_fUSD_20240219
["ID","MTS","AMOUNT","RATE_DAILY","PERIOD"]
[314500409,1708377122408,-8099.08,0.00048767,30]
[314500410,1708377122418,-500.0,0.00048767,30]
[314500411,1708377122428,-518.58,0.00048767,30]
[314500412,1708377122438,-575.48,0.00048767,30]
[314500413,1708377122447,-500.0,0.00048767,30]
[314500414,1708377122462,-1505.89,0.00048767,30]
[314500415,1708377122480,-1648.23,0.00048767,30]
[314500416,1708377122498,-150.0,0.00048827,7]
[314500417,1708377122508,-152.51359009,0.00048841,30]
[314500418,1708377122518,-150.0,0.00048863,7]
[314500419,1708377122529,-150.0,0.00048897,7]
[314500420,1708377122539,-150.0,0.00048899,7]
[314500421,1708377122549,-150.0,0.00048901,7]
[314500422,1708377122558,-470.18,0.00048904,2]
[314500423,1708377122568,-974.76,0.00048904,2]
[314500424,1708377122579,-150.0,0.00048921,7]
[314500425,1708377122589,-150.0,0.00048942,7]
[314500426,1708377122598,-150.0,0.00048952,7]
[314500427,1708377122609,-150.0,0.00048964,7]
[314500428,1708377122618,-150.0,0.00048971,7]
[314500429,1708377122629,-150.0,0.00048979,7]
[314500430,1708377122639,-150.0,0.0004898,7]
[314500431,1708377122650,-200.0,0.00049,24]
[314500432,1708377122660,-1350.0,0.00049,3]
[314500433,1708377122671,-80365.82,0.00049,7]
[314500434,1708377122682,-151990.99250708,0.00049,60]
[314500435,1708377122692,-4000.0,0.00049,90]
[314500436,1708377122702,-317.0,0.00049,39]
[314500437,1708377122713,-571.0,0.00049,90]
[314500438,1708377122723,-150.0,0.00049003,7]
[314500439,1708377122733,-809.54,0.00049014,2]
[314500440,1708377122743,-150.0,0.00049024,7]
[314500441,1708377122753,-150.0,0.00049033,7]
[314500442,1708377122763,-2039.93,0.0004904,30]
[314500443,1708377122773,-1605.07,0.0004904,30]
[314500444,1708377122783,-1090.94,0.0004904,30]
[314500445,1708377122793,-1161.62,0.0004904,30]
[314500446,1708377122803,-4690.89,0.0004904,30]
[314500447,1708377122814,-2224.42,0.0004904,30]
[314500448,1708377122825,-1819.91,0.0004904,30]
[314500449,1708377122835,-809.73,0.0004904,30]
[314500450,1708377122846,-590.34,0.0004904,30]
[314500451,1708377122856,-1319.16,0.0004904,30]
[314500452,1708377122865,-886.59,0.0004904,30]
[314500453,1708377122875,-1287.42,0.0004904,30]
[314500454,1708377122886,-1242.47,0.0004904,30]
[314500455,1708377122895,-924.48,0.0004904,30]
[314500456,1708377122906,-2026.93,0.0004904,30]
[314500457,1708377122916,-1086.95,0.0004904,30]
[314500458,1708377122926,-735.92,0.0004904,30]
[314500459,1708377122937,-878.99,0.0004904,30]
[314500460,1708377122947,-1756.54,0.0004904,30]
[314500461,1708377122957,-898.46,0.0004904,30]
[314500462,1708377122968,-500.0,0.0004904,30]
[314500463,1708377122978,-957.91,0.0004904,30]
[314500464,1708377122989,-500.0,0.0004904,30]
[314500465,1708377123000,-1623.95,0.0004904,30]
[314500466,1708377123010,-1426.52,0.0004904,30]
[314500467,1708377123020,-1041.23,0.0004904,30]
[314500468,1708377123030,-1313.08,0.0004904,30]
[314500469,1708377123039,-2030.96,0.0004904,30]
[314500470,1708377123049,-500.0,0.0004904,30]
[314500471,1708377123059,-583.37,0.0004904,30]
[314500472,1708377123069,-500.0,0.00049041,30]
[314500473,1708377123086,-500.0,0.00049041,30]
[314500474,1708377123096,-500.0,0.00049041,30]
[314500475,1708377123109,-500.0,0.00049041,30]
[314500476,1708377123125,-177.43732151,0.00049041,30]
[314500477,1708377123135,-500.0,0.00049041,30]
[314500478,1708377123145,-500.0,0.00049041,30]
[314500479,1708377123155,-304.84,0.00049041,30]
[314500480,1708377123165,-500.0,0.00049041,30]
[314500481,1708377123175,-500.0,0.00049041,30]
[314500482,1708377123185,-1088.26301311,0.00049041,57]
[314500483,1708377123195,-602.01,0.00049041,30]
[314500484,1708377123204,-500.0,0.00049041,30]
[314500485,1708377123214,-500.0,0.00049041,30]
[314500486,1708377123224,-512.36,0.00049041,30]
[314500487,1708377123234,-732.56,0.00049041,30]
[314500488,1708377123245,-500.0,0.00049041,30]
[314500489,1708377123255,-500.0,0.00049041,30]
[314500490,1708377123266,-573.89,0.00049041,30]
[314500491,1708377123276,-500.0,0.00049041,30]
[314500492,1708377123287,-500.0,0.00049041,30]
[314500493,1708377123296,-500.0,0.00049041,30]
[314500494,1708377123306,-500.0,0.00049041,30]
[314500495,1708377123316,-606.28,0.00049041,30]
[314500496,1708377123327,-1049.77,0.00049041,30]
[314500497,1708377123336,-500.0,0.00049041,30]
[314500498,1708377123346,-500.0,0.00049041,30]
[314500499,1708377123356,-500.0,0.00049041,30]
[314500500,1708377123366,-500.0,0.00049041,30]
[314500501,1708377123376,-500.0,0.00049041,30]
[314500502,1708377123386,-500.0,0.00049041,30]
[314500503,1708377123397,-500.0,0.00049041,30]
[314500504,1708377123407,-500.0,0.00049041,30]
[314500505,1708377123417,-500.0,0.00049041,30]
[314500506,1708377123427,-500.0,0.00049041,30]
[314500507,1708377123438,-500.0,0.00049041,30]
[314500508,1708377123447,-544.97,0.00049041,30]
[314500509,1708377123460,-500.0,0.00049041,30]
[314500510,1708377123470,-500.0,0.00049041,30]
[314500511,1708377123479,-500.0,0.00049041,30]
[314500512,1708377123489,-500.0,0.00049041,30]
[314500513,1708377123502,-500.0,0.00049041,30]
[314500514,1708377123512,-500.0,0.00049041,30]
[314500515,1708377123522,-500.0,0.00049041,30]
[314500516,1708377123732,-500.0,0.00049041,30]
[314500517,1708377123742,-500.0,0.00049041,30]
[314500518,1708377123752,-500.0,0.00049041,30]
[314500519,1708377123761,-500.0,0.00049041,30]
[314500520,1708377123771,-505.06,0.00049041,30]
[314500521,1708377123782,-500.0,0.00049041,30]
[314500522,1708377123792,-1141.6,0.00049041,30]
[314500523,1708377123801,-500.0,0.00049041,30]
[314500524,1708377123810,-500.0,0.00049041,30]
[314500525,1708377123820,-500.0,0.00049041,30]
[314500526,1708377123830,-500.0,0.00049041,30]
[314500527,1708377123839,-500.0,0.00049041,30]
[314500528,1708377123848,-500.0,0.00049041,30]
[314500529,1708377123858,-500.0,0.00049041,30]
[314500530,1708377123868,-567.74,0.00049041,30]
[314500531,1708377123877,-777.32,0.00049041,2]
[314500532,1708377123887,-543.27901779,0.00049041,30]
[314500533,1708377123897,-500.0,0.00049041,30]
[314500534,1708377123906,-603.14,0.00049041,30]
[314500535,1708377123915,-601.9,0.00049041,30]
[314500536,1708377123925,-177.33942279,0.00049041,30]
[314500537,1708377123934,-500.0,0.00049041,30]
[314500538,1708377123944,-500.0,0.00049041,30]
[314500539,1708377123954,-194.77013876,0.00049041,2]
[314500540,1708377123963,-500.0,0.00049041,30]
[314500541,1708377123973,-500.0,0.00049041,30]
[314500542,1708377123983,-500.0,0.00049041,30]
[314500543,1708377123993,-547.18773456,0.00049041,30]
[314500544,1708377124002,-750.4,0.00049041,30]
[314500545,1708377124011,-599.04,0.00049041,30]
[314500546,1708377124021,-500.0,0.00049041,30]
[314500547,1708377124030,-500.0,0.00049041,30]
[314500548,1708377124040,-500.0,0.00049041,30]
[314500549,1708377124049,-500.0,0.00049041,30]
[314500550,1708377124059,-500.0,0.00049041,30]
[314500551,1708377124069,-500.0,0.00049041,30]
[314500552,1708377124079,-500.0,0.00049041,30]
[314500553,1708377124089,-500.0,0.00049041,30]
[314500554,1708377124098,-500.0,0.00049041,30]
[314500555,1708377124108,-690.28,0.00049041,30]
[314500556,1708377124118,-500.0,0.00049041,30]
[314500557,1708377124127,-784.44,0.00049041,30]
[314500558,1708377124137,-441.65477169,0.00049041,30]
[314500559,1708377124146,-599.44117387,0.00049041,30]
[314500560,1708377124155,-500.0,0.00049041,30]
[314500561,1708377124164,-533.46,0.00049041,30]
[314500562,1708377124174,-500.0,0.00049041,30]
[314500563,1708377124183,-712.44,0.00049041,30]
[314500564,1708377124192,-568.95,0.00049041,30]
[314500565,1708377124201,-543.64,0.00049041,30]
[314500566,1708377124210,-500.0,0.00049041,30]
[314500567,1708377124220,-500.0,0.00049041,30]
[314500568,1708377124229,-513.43,0.00049041,30]
[314500569,1708377124238,-1175.74,0.00049041,30]
[314500570,1708377124248,-500.0,0.00049041,30]
[314500571,1708377124257,-500.0,0.00049041,30]
[314500572,1708377124266,-500.0,0.00049041,30]
[314500573,1708377124276,-500.0,0.00049041,30]
[314500574,1708377124286,-500.0,0.00049041,30]
[314500575,1708377124295,-500.0,0.00049041,30]
[314500576,1708377124304,-500.0,0.00049041,30]
[314500577,1708377124313,-500.0,0.00049041,30]
[314500578,1708377124322,-500.0,0.00049041,30]
[314500579,1708377124331,-500.0,0.00049041,30]
[314500580,1708377124341,-500.0,0.00049041,30]
[314500581,1708377124350,-547.66822588,0.00049041,30]
[314500582,1708377124359,-523.21,0.00049041,30]
[314500583,1708377124368,-521.63,0.00049041,30]
[314500584,1708377124377,-500.0,0.00049041,30]
[314500585,1708377124386,-500.0,0.00049041,30]
[314500586,1708377124395,-500.0,0.00049041,30]
[314500587,1708377124405,-500.0,0.00049041,30]
[314500588,1708377124414,-513.88,0.00049041,30]
[314500589,1708377124423,-500.0,0.00049041,30]
[314500590,1708377124432,-500.0,0.00049041,30]
[314500591,1708377124442,-500.0,0.00049041,30]
[314500592,1708377124451,-660.98,0.00049041,30]
[314500593,1708377124461,-500.0,0.00049041,30]
[314500594,1708377124471,-500.0,0.00049041,30]
[314500595,1708377124482,-500.0,0.00049041,30]
[314500596,1708377124491,-500.0,0.00049041,30]
[314500597,1708377124502,-588.08,0.00049041,30]
[314500598,1708377124511,-500.0,0.00049041,30]
[314500599,1708377124521,-500.0,0.00049041,30]
[314500600,1708377124530,-500.0,0.00049041,30]
[314500601,1708377124539,-507.61950516,0.00049041,30]
[314500602,1708377124549,-500.0,0.00049041,30]
[314500603,1708377124559,-611.78,0.00049041,30]
[314500604,1708377124568,-597.62,0.00049041,30]
[314500605,1708377124579,-555.82,0.00049041,30]
[314500606,1708377124588,-500.0,0.00049041,30]
[314500607,1708377124600,-500.0,0.00049041,30]
[314500608,1708377124609,-500.0,0.00049041,30]
[314500609,1708377124619,-500.0,0.00049041,30]
[314500610,1708377124628,-500.0,0.00049041,30]
[314500611,1708377124638,-918.19,0.00049041,30]
[314500612,1708377124649,-578.31,0.00049041,30]
[314500613,1708377124658,-500.0,0.00049041,30]
[314500614,1708377124668,-500.0,0.00049041,30]
[314500615,1708377124677,-500.0,0.00049041,30]
[314500616,1708377124687,-527.96,0.00049041,30]
[314500617,1708377124696,-500.0,0.00049041,30]
[314500618,1708377124706,-500.0,0.00049041,30]
[314500619,1708377124716,-500.0,0.00049041,30]
[314500620,1708377124726,-500.0,0.00049041,30]
[314500621,1708377124735,-500.0,0.00049041,30]
[314500622,1708377124744,-594.51732349,0.00049041,30]
[314500623,1708377124754,-553.98,0.00049041,30]
[314500624,1708377124763,-500.0,0.00049041,30]
[314500625,1708377124772,-500.0,0.00049041,30]
[314500626,1708377124782,-500.0,0.00049041,30]
[314500627,1708377124792,-529.69,0.00049041,30]
[314500628,1708377124802,-500.0,0.00049041,30]
[314500629,1708377124811,-500.0,0.00049041,30]
[314500630,1708377124820,-500.0,0.00049041,30]
[314500631,1708377124830,-500.0,0.00049041,30]
[314500632,1708377124839,-556.74,0.00049041,30]
[314500633,1708377124849,-500.0,0.00049041,30]
[314500634,1708377124858,-692.58,0.00049041,30]
[314500635,1708377124868,-500.0,0.00049041,30]
[314500636,1708377124877,-552.5,0.00049041,30]
[314500637,1708377124887,-500.0,0.00049041,30]
[314500638,1708377124896,-500.0,0.00049041,30]
[314500639,1708377124905,-500.0,0.00049041,30]
[314500640,1708377124918,-544.84,0.00049041,30]
[314500641,1708377124928,-500.0,0.00049041,30]
[314500642,1708377124937,-591.77,0.00049041,30]
[314500643,1708377124948,-500.0,0.00049041,30]
[314500644,1708377124958,-500.0,0.00049041,30]
[314500645,1708377124967,-664.26,0.00049041,30]
[314500646,1708377124977,-500.0,0.00049041,30]
[314500647,1708377124986,-500.0,0.00049041,30]
[314500648,1708377124996,-500.0,0.00049041,30]
[314500649,1708377125006,-500.0,0.00049041,30]
[314500650,1708377125016,-646.62,0.00049041,30]
[314500651,1708377125025,-635.19,0.00049041,30]
[314500652,1708377125035,-514.25,0.00049041,30]
[314500653,1708377125045,-667.9,0.00049041,30]
[314500654,1708377125055,-473.64,0.00049041,30]
[314500655,1708377125065,-538.23,0.00049041,30]
[314500656,1708377125075,-500.0,0.00049041,30]
[314500657,1708377125085,-500.0,0.00049041,30]
[314500658,1708377125094,-516.68,0.00049041,30]
[314500659,1708377125104,-615.42,0.00049041,30]
[314500660,1708377125114,-500.0,0.00049041,30]
[314500661,1708377125124,-500.0,0.00049041,30]
[314500662,1708377125133,-500.0,0.00049041,30]
[314500663,1708377125143,-500.0,0.00049041,30]
[314500664,1708377125153,-500.0,0.00049041,30]
[314500665,1708377125163,-617.0,0.00049041,30]
[314500666,1708377125174,-544.62,0.00049041,30]
[314500667,1708377125184,-500.0,0.00049041,30]
[314500668,1708377125194,-500.0,0.00049041,30]
[314500669,1708377125204,-500.0,0.00049041,30]
[314500670,1708377125213,-500.0,0.00049041,30]
[314500671,1708377125223,-500.0,0.00049041,30]
[314500672,1708377125233,-500.0,0.00049041,30]
[314500673,1708377125242,-500.0,0.00049041,30]
[314500674,1708377125252,-1052.96,0.00049041,30]
[314500675,1708377125262,-553.52,0.00049041,30]
[314500676,1708377125272,-500.0,0.00049041,30]
[314500677,1708377125282,-566.64,0.00049041,30]
[314500678,1708377125292,-500.0,0.00049041,30]
[314500679,1708377125301,-500.0,0.00049041,30]
[314500680,1708377125311,-500.0,0.00049041,30]
[314500681,1708377125320,-500.0,0.00049041,30]
[314500682,1708377125331,-500.0,0.00049041,30]
[314500683,1708377125340,-519.09,0.00049041,30]
[314500684,1708377125350,-772.36,0.00049041,30]
[314500685,1708377125360,-500.0,0.00049041,30]
[314500686,1708377125370,-500.0,0.00049041,30]
[314500687,1708377125380,-500.0,0.00049041,30]
[314500688,1708377125389,-500.0,0.00049041,30]
[314500689,1708377125399,-558.08,0.00049041,30]
[314500690,1708377125410,-767.53,0.00049041,30]
[314500691,1708377125419,-677.61,0.00049041,30]
[314500692,1708377125429,-500.0,0.00049041,30]
[314500693,1708377125439,-521.79,0.00049041,30]
[314500694,1708377125449,-500.0,0.00049041,30]
[314500695,1708377125459,-594.14,0.00049041,30]
[314500696,1708377125471,-500.0,0.00049041,30]
[314500697,1708377125481,-781.41,0.00049041,30]
[314500698,1708377125491,-500.0,0.00049041,30]
[314500699,1708377125502,-470.48,0.00049041,30]
[314500700,1708377125514,-745.38,0.00049041,30]
[314500701,1708377125523,-500.0,0.00049041,30]
[314500702,1708377125533,-167.40946233,0.00049041,30]
[314500703,1708377125543,-230.11,0.00049041,30]
[314500704,1708377125554,-500.0,0.00049041,30]
[314500705,1708377125565,-500.0,0.00049041,30]
[314500706,1708377125575,-1082.3,0.00049041,30]
[314500707,1708377125584,-500.0,0.00049041,30]
[314500708,1708377125593,-500.0,0.00049041,30]
[314500709,1708377125603,-627.94,0.00049041,30]
[314500710,1708377125612,-500.0,0.00049041,30]
[314500711,1708377125622,-505.9,0.00049041,30]
[314500712,1708377125631,-500.0,0.00049041,30]
[314500713,1708377125641,-500.0,0.00049041,30]
[314500714,1708377125651,-529.79,0.00049041,30]
[314500715,1708377125661,-536.14,0.00049041,30]
[314500716,1708377125671,-3104.74,0.00049041,30]
[314500717,1708377125681,-500.0,0.00049041,30]
[314500718,1708377125691,-523.82,0.00049041,30]
[314500719,1708377125701,-557.18,0.00049041,30]
[314500720,1708377125711,-1017.28,0.00049041,30]
[314500721,1708377125722,-500.0,0.00049041,30]
[314500722,1708377125733,-2181.83,0.00049041,30]
[314500723,1708377125743,-804.05,0.00049041,30]
[314500724,1708377125753,-500.0,0.00049041,30]
[314500725,1708377125764,-837.03,0.00049041,30]
[314500726,1708377125774,-500.0,0.00049041,30]
[314500727,1708377125785,-1389.72,0.00049041,30]
[314500728,1708377125796,-654.5,0.00049041,30]
[314500729,1708377125806,-500.44,0.00049041,30]
[314500730,1708377125817,-771.23,0.00049041,30]
[314500731,1708377125829,-500.0,0.00049041,30]
[314500732,1708377125840,-205.83,0.00049041,30]
[314500733,1708377125854,-500.0,0.00049041,30]
[314500734,1708377125866,-604.81,0.00049041,30]
[314500735,1708377125877,-500.0,0.00049041,30]
[314500736,1708377125890,-1426.77,0.00049041,30]
[314500737,1708377125901,-527.43,0.00049041,30]
[314500738,1708377125912,-500.0,0.00049041,30]
[314500739,1708377125924,-1745.38,0.00049041,30]
[314500740,1708377125935,-1075.7,0.00049041,30]
[314500741,1708377125945,-1268.71,0.00049041,30]
[314500742,1708377125957,-886.05,0.00049041,30]
[314500743,1708377125968,-500.0,0.00049041,30]
[314500744,1708377125979,-899.22,0.00049041,30]
[314500745,1708377125990,-500.0,0.00049041,30]
[314500746,1708377126000,-2678.83,0.00049041,30]
[314500747,1708377126011,-1833.32,0.00049041,30]
[314500748,1708377126022,-2702.11,0.00049041,30]
[314500749,1708377126032,-10950.38,0.00049041,30]
[314500750,1708377126043,-500.0,0.00049041,30]
[314500751,1708377126053,-741.32,0.00049041,30]
[314500752,1708377126064,-3140.24,0.00049041,30]
[314500753,1708377126077,-500.0,0.00049041,30]
[314500754,1708377126088,-500.0,0.00049041,30]
[314500755,1708377126099,-1835.49,0.00049041,30]
[314500756,1708377126110,-503.56,0.00049041,30]
[314500757,1708377126120,-694.62,0.00049041,30]
[314500758,1708377126131,-500.0,0.00049041,30]
[314500759,1708377126140,-20395.47,0.00049041,30]
[314500760,1708377126151,-2331.98,0.00049041,30]
[314500761,1708377126161,-599.22,0.00049041,30]
[314500762,1708377126171,-1530.72,0.00049041,30]
[314500763,1708377126182,-789.92,0.00049041,30]
[314500764,1708377126191,-780.99,0.00049041,30]
[314500765,1708377126201,-500.0,0.00049041,30]
[314500766,1708377126211,-500.0,0.00049041,30]
[314500767,1708377126221,-500.0,0.00049041,30]
[314500768,1708377126230,-2037.65,0.00049041,30]
[314500769,1708377126240,-796.83,0.00049041,30]
[314500770,1708377126251,-562.3,0.00049041,30]
[314500771,1708377126261,-1380.27,0.00049041,30]
[314500772,1708377126271,-1316.81,0.00049041,30]
[314500773,1708377126281,-677.42,0.00049041,30]
[314500774,1708377126291,-515.48,0.00049041,30]
[314500775,1708377126302,-3662.65,0.00049041,30]
[314500776,1708377126312,-500.0,0.00049041,30]
[314500777,1708377126322,-500.0,0.00049041,30]
[314500778,1708377126334,-1284.51,0.00049041,30]
[314500779,1708377126344,-679.93,0.00049041,30]
[314500780,1708377126353,-382.05,0.00049041,30]
[314500781,1708377126364,-500.0,0.00049041,30]
[314500782,1708377126373,-768.65,0.00049041,30]
[314500783,1708377126384,-500.0,0.00049041,30]
[314500784,1708377126395,-2893.51,0.00049041,30]
[314500785,1708377126405,-500.0,0.00049041,30]
[314500786,1708377126415,-562.1,0.00049041,30]
[314500787,1708377126426,-5456.49,0.00049041,30]
[314500788,1708377126436,-500.0,0.00049041,30]
[314500789,1708377126446,-500.0,0.00049041,30]
[314500790,1708377126455,-2571.27,0.00049041,30]
[314500791,1708377126471,-826.56,0.00049041,30]
[314500792,1708377126482,-500.0,0.00049041,30]
[314500793,1708377126491,-1599.05,0.00049041,30]
[314500794,1708377126503,-500.0,0.00049041,30]
[314500795,1708377126513,-500.0,0.00049041,30]
[314500796,1708377126524,-721.27,0.00049041,30]
[314500797,1708377126535,-2039.63,0.00049041,30]
[314500798,1708377126545,-2095.21,0.00049041,30]
[314500799,1708377126557,-727.3,0.00049041,30]
[314500800,1708377126568,-500.0,0.00049041,30]
[314500801,1708377126579,-500.0,0.00049041,30]
[314500802,1708377126588,-500.0,0.00049041,30]
[314500803,1708377126598,-846.21,0.00049041,30]
[314500804,1708377126608,-1638.65,0.00049041,30]
[314500805,1708377126617,-1395.59,0.00049041,30]
[314500806,1708377126627,-586.56,0.00049041,30]
[314500807,1708377126637,-1364.92,0.00049041,30]
[314500808,1708377126648,-1945.02,0.00049041,30]
[314500809,1708377126658,-628.31,0.00049041,30]
[314500810,1708377126669,-500.0,0.00049041,30]
[314500811,1708377126679,-500.0,0.00049041,30]
[314500812,1708377126689,-2020.6,0.00049041,30]
[314500813,1708377126699,-500.0,0.00049041,30]
[314500814,1708377126710,-500.0,0.00049041,30]
[314500815,1708377126720,-500.0,0.00049041,30]
[314500816,1708377126730,-2298.57,0.00049041,30]
[314500817,1708377126739,-500.0,0.00049041,30]
[314500818,1708377126750,-500.0,0.00049041,30]
[314500819,1708377126760,-1046.88,0.00049041,30]
[314500820,1708377126769,-1430.94,0.00049041,30]
[314500821,1708377126779,-500.0,0.00049041,30]
[314500822,1708377126788,-990.31,0.00049041,30]
[314500823,1708377126798,-500.0,0.00049041,30]
[314500824,1708377126808,-941.5,0.00049041,30]
[314500825,1708377126817,-2710.69,0.00049041,30]
[314500826,1708377126828,-11885.76,0.00049041,30]
[314500827,1708377126838,-500.0,0.00049041,30]
[314500828,1708377126848,-8772.79,0.00049041,30]
[314500829,1708377126859,-1007.39,0.00049041,30]
[314500830,1708377126869,-500.0,0.00049041,30]
[314500831,1708377126879,-524.80200905,0.00049041,30]
[314500832,1708377126888,-500.0,0.00049041,30]
[314500833,1708377126898,-877.27,0.00049041,30]
[314500834,1708377126908,-774.82,0.00049041,30]
[314500835,1708377126917,-1539.61,0.00049041,30]
[314500836,1708377126927,-740.11,0.00049041,30]
[314500837,1708377126937,-500.0,0.00049041,30]
[314500838,1708377126946,-530.62,0.00049041,30]
[314500839,1708377126957,-500.0,0.00049041,30]
[314500840,1708377126966,-1422.42,0.00049041,30]
[314500841,1708377126976,-500.0,0.00049041,30]
[314500842,1708377126988,-500.0,0.00049041,30]
[314500843,1708377126997,-2610.19,0.00049041,30]
[314500844,1708377127006,-1255.72,0.00049041,30]
[314500845,1708377127016,-1016.32,0.00049041,30]
[314500846,1708377127025,-500.0,0.00049041,30]
[314500847,1708377127035,-1233.1,0.00049041,30]
[314500848,1708377127044,-5037.62,0.00049041,30]
[314500849,1708377127054,-1545.99,0.00049041,30]
[314500850,1708377127064,-771.45,0.00049041,30]
[314500851,1708377127074,-444.32,0.00049041,30]
[314500852,1708377127085,-996.35,0.00049041,30]
[314500853,1708377127094,-753.57,0.00049041,30]
[314500854,1708377127104,-1249.41,0.00049041,30]
[314500855,1708377127113,-500.0,0.00049041,30]
[314500856,1708377127123,-500.0,0.00049041,30]
[314500857,1708377127133,-609.95,0.00049041,30]
[314500858,1708377127143,-3806.98,0.00049041,30]
[314500859,1708377127154,-4368.41,0.00049041,30]
[314500860,1708377127164,-1205.55,0.00049041,30]
[314500861,1708377127174,-500.0,0.00049041,30]
[314500862,1708377127184,-1108.98,0.00049041,30]
[314500863,1708377127194,-500.0,0.00049041,30]
[314500864,1708377127203,-745.48,0.00049041,30]
[314500865,1708377127213,-500.0,0.00049041,30]
[314500866,1708377127223,-500.0,0.00049041,30]
[314500867,1708377127437,-761.98,0.00049041,30]
[314500868,1708377127447,-1070.44,0.00049041,30]
[314500869,1708377127457,-2405.19,0.00049041,30]
[314500870,1708377127467,-1483.04,0.00049041,30]
[314500871,1708377127480,-656.25,0.00049041,30]
[314500872,1708377127490,-500.0,0.00049041,30]
[314500873,1708377127501,-4891.81,0.00049041,30]
[314500874,1708377127511,-703.9,0.00049041,30]
[314500875,1708377127522,-500.0,0.00049041,30]
[314500876,1708377127532,-1120.83,0.00049041,30]
[314500877,1708377127542,-500.0,0.00049041,30]
[314500878,1708377127552,-7009.22,0.00049041,30]
[314500879,1708377127562,-5142.29,0.00049041,30]
[314500880,1708377127572,-583.58,0.00049041,30]
[314500881,1708377127583,-500.0,0.00049041,30]
[314500882,1708377127592,-1149.32,0.00049041,30]
[314500883,1708377127601,-500.0,0.00049041,30]
[314500884,1708377127612,-1818.57,0.00049041,30]
[314500885,1708377127621,-346.61126061,0.00049041,30]
[314500886,1708377127631,-713.94,0.00049041,30]
[314500887,1708377127640,-2123.12,0.00049041,30]
[314500888,1708377127649,-550.56,0.00049041,30]
[314500889,1708377127658,-820.56,0.00049041,30]
[314500890,1708377127670,-4375.89,0.00049041,30]
[314500891,1708377127679,-500.0,0.00049041,30]
[314500892,1708377127688,-500.0,0.00049041,30]
[314500893,1708377127698,-500.0,0.00049041,30]
[314500894,1708377127707,-1716.3,0.00049041,30]
[314500895,1708377127716,-1435.17,0.00049041,30]
[314500896,1708377127726,-1857.4,0.00049041,30]
[314500897,1708377127736,-505.27,0.00049041,2]
[314500898,1708377127745,-1170.62,0.00049041,30]
[314500899,1708377127755,-1644.0,0.00049041,30]
[314500900,1708377127769,-9747.42,0.00049041,30]
[314500901,1708377127778,-500.0,0.00049041,30]
[314500902,1708377127788,-699.58,0.00049041,30]
[314500903,1708377127797,-500.0,0.00049041,30]
[314500904,1708377127807,-1379.02,0.00049041,30]
[314500905,1708377127817,-500.0,0.00049041,30]
[314500906,1708377127827,-504.45,0.00049041,30]
[314500907,1708377127836,-1052.13,0.00049041,30]
[314500908,1708377127846,-500.0,0.00049041,30]